bitfinex-derivatives/quotes_ETHF0:USTF0_20241024
["timestamp","ask_amount","ask_price","bid_price","bid_amount"]
[1729781935870,0.39605,2526.6,2526.5,0.12386523]
[1729781936070,0.39605,2526.6,2526.5,0.51992523]
[1729781936876,0.39605,2526.6,2526.5,2.08975056]
[1729781937379,0.39597,2527.1,2527.0,0.39597]
[1729781937571,3.60376,2527.2,2527.1,0.39596]
[1729781937772,3.2078,2527.2,2527.1,2.43848533]
[1729781937981,3.2078,2527.2,2527.1,7.3364263]
[1729781938282,3.2078,2527.2,2527.1,7.33640824]
[1729781938678,0.3959,2527.6,2527.5,0.39589]
[1729781938888,0.39588,2527.6,2527.5,1.56982533]
[1729781939080,1.56982533,2527.6,2527.4,1.96573533]
[1729781939283,0.3959,2527.5,2527.4,1.56982533]
[1729781939474,0.3959,2527.5,2527.4,1.96574533]
[1729781939785,0.3959,2527.5,2527.4,1.56982533]
[1729781939981,0.3959,2527.5,2527.4,1.96574533]
[1729781940180,0.3959,2527.5,2527.4,1.56982533]
[1729781940384,0.3959,2527.5,2527.4,0.39591]
[1729781940385,0.39592,2527.5,2527.4,0.39591]
[1729781940678,0.39593,2527.4,2527.3,0.39592]
[1729781940883,0.39591,2527.5,2527.4,0.3959]
[1729781941282,3.2078,2527.7,2527.2,4.81378783]
[1729781941581,0.39591,2527.5,2527.4,0.3959]
[1729781941781,0.39589,2527.6,2527.5,0.39589]
[1729781941979,3.2078,2527.7,2527.2,4.81378783]
[1729781941980,3.2078,2527.7,2527.6,0.39588]
[1729781942178,0.39586,2527.8,2527.7,0.39586]
[1729781942383,0.39586,2527.8,2527.7,0.4318]
[1729781942895,0.3959,2527.5,2527.4,0.3959]
[1729781943777,0.3959,2527.5,2527.4,3.6037]
[1729781943989,0.3959,2527.5,2527.4,3.2078]
[1729781944174,0.3959,2527.5,2527.4,3.60372]
[1729781944380,0.3959,2527.5,2527.4,0.39592]
[1729781944779,0.4317,2527.7,2527.3,0.4318]
[1729781944979,0.39592,2527.4,2527.3,0.82772]
[1729781945179,0.39591,2527.5,2527.4,0.3959]
[1729781945380,0.98965,2527.8,2527.3,3.6396]
[1729781945584,0.3959,2527.6,2527.5,0.39589]
[1729781946387,0.39592,2527.5,2527.4,0.39591]
[1729781946784,0.39592,2527.5,2527.4,0.84471]
[1729781947778,0.39592,2527.5,2527.4,4.05251]
[1729781948779,0.39592,2527.5,2527.4,0.84471]
[1729781949887,0.39592,2527.5,2527.4,0.9685247]
[1729781950077,0.39592,2527.5,2527.4,0.84471]
[1729781950278,0.98969,2527.7,2527.3,0.4318]
[1729781950483,0.39593,2527.3,2527.2,0.4302]
[1729781951488,0.39593,2527.3,2527.2,0.82615]
[1729781952781,0.98973,2527.6,2527.2,0.4302]
[1729781952986,0.39592,2527.5,2527.4,0.3959]
[1729781954290,1.41679,2527.7,2527.2,7.03751783]
[1729781954291,0.98973,2527.6,2527.2,7.03751783]
[1729781954482,0.39593,2527.3,2527.2,0.82615]
[1729781954680,0.39593,2527.3,2527.2,4.03395]
[1729781954882,0.39593,2527.3,2527.2,0.4302]
[1729781955491,0.39595,2527.2,2527.1,0.39596]
[1729781957394,0.9898,2527.4,2527.0,5.13678783]
[1729781957395,0.39596,2527.1,2527.0,5.13678783]
[1729781958392,0.39596,2527.1,2527.0,8.34458783]
[1729781959196,0.39596,2527.1,2527.0,5.13678783]
[1729781959697,0.39596,2527.1,2527.0,8.34458783]
[1729781960698,0.39596,2527.2,2527.1,0.39595]
[1729781961002,0.39596,2527.2,2527.0,7.94861783]
[1729781961003,0.98975,2527.6,2527.0,7.94861783]
[1729781961199,0.39593,2527.4,2527.3,3.79542783]
[1729781962097,0.39593,2527.4,2527.3,3.39951783]
[1729781963199,0.39593,2527.4,2527.3,3.79544783]
[1729781963596,0.98975,2527.6,2527.2,0.39594]
[1729781963795,0.39593,2527.3,2527.2,0.39594]
[1729781970098,0.39592,2527.5,2527.4,0.3959]
[1729781972000,1.46057,2527.8,2527.5,0.39588]
[1729781972001,0.3959,2527.6,2527.5,0.39588]
[1729781972609,1.46057,2527.8,2527.3,6.60731783]
[1729781972912,0.39592,2527.4,2527.3,3.60373]
[1729781973101,0.39592,2527.4,2527.3,3.2078]
[1729781973505,0.39595,2527.3,2527.2,0.39593]
[1729781973798,0.39595,2527.3,2527.2,0.51975264]
[1729781975497,0.39595,2527.3,2527.2,0.51975553]
[1729781976208,0.39595,2527.3,2527.2,0.12382553]
[1729781976404,7.1646,2527.3,2526.7,6.60731783]
[1729781976606,0.39599,2527.0,2526.9,0.39598]
[1729781976810,0.39599,2527.0,2526.9,3.91933674]
[1729781977204,0.39599,2527.0,2526.9,3.52335674]
[1729781977406,0.39599,2527.0,2526.9,0.12383891]
[1729781977914,0.39599,2527.0,2526.9,0.51982891]
[1729781978810,0.39599,2527.0,2526.9,3.91934674]
[1729781979007,3.2078,2527.3,2526.9,7.48095674]
[1729781979217,0.39596,2527.2,2527.1,0.39595]
[1729781979516,0.39596,2527.2,2527.1,0.51979145]
[1729781979721,0.39596,2527.2,2527.1,0.12384145]
[1729781979722,4.35276,2527.2,2527.1,0.12384145]
[1729781980411,3.9568,2527.2,2526.7,3.2078]
[1729781980608,0.39599,2526.9,2526.8,0.9412608]
[1729781980809,0.39599,2526.9,2526.8,0.1238501]
[1729781981207,4.35359,2526.9,2526.8,0.94129988]
[1729781981511,4.35359,2526.9,2526.8,0.1238501]
[1729781981816,0.39606,2526.5,2526.4,3.6561]
[1729781982116,0.39606,2526.5,2526.4,4.59749699]
[1729781982510,0.39606,2526.5,2526.4,3.6561]
[1729781982816,0.39606,2526.5,2526.4,4.9935812]
[1729781983013,0.39606,2526.5,2526.4,3.77996989]
[1729781983215,4.35446,2526.5,2526.4,3.95100878]
[1729781983415,0.39606,2526.5,2526.4,4.54526778]
[1729781985019,0.39606,2526.5,2526.4,3.60387]
[1729781986315,0.39606,2526.5,2526.4,4.14917192]
[1729781987115,0.39606,2526.5,2526.4,4.54524192]
[1729781987413,0.39606,2526.5,2526.4,4.54526738]
[1729781987613,0.39606,2526.5,2526.4,3.92592547]
[1729781987812,0.39606,2526.5,2526.4,3.72773487]
[1729781988024,0.39606,2526.5,2526.4,3.33166487]
[1729781988217,4.35446,2526.5,2526.4,3.33166487]
[1729781989223,4.35446,2526.5,2526.2,0.9097]
[1729781989224,3.9584,2526.5,2526.2,0.9097]
[1729781989412,0.39613,2526.3,2526.2,0.9097]
[1729781989613,0.39613,2526.3,2526.2,1.03358127]
[1729781990312,0.39614,2526.2,2526.1,3.2078]
[1729781990514,0.39614,2526.2,2526.1,3.33168411]
[1729781991319,0.39614,2526.2,2526.1,3.2078]
[1729781992916,0.39616,2526.1,2526.0,1.72717]
[1729781993525,4.6436,2526.4,2526.3,0.3961]
[1729781993526,3.60392,2526.4,2526.3,0.3961]
[1729781993723,0.99018,2526.7,2526.4,0.3961]
[1729781993724,0.39611,2526.5,2526.4,0.3961]
[1729781993925,0.39613,2526.4,2526.3,0.39612]
[1729781994420,0.99021,2526.6,2526.1,3.39951783]
[1729781994421,0.39614,2526.2,2526.1,3.79566783]
[1729781994830,0.99029,2526.4,2526.0,0.9025]
[1729781994831,0.39616,2526.1,2526.0,1.29867]
[1729781995223,0.39616,2526.1,2526.0,1.02638633]
[1729781995420,0.39616,2526.1,2526.0,0.4485]
[1729781996622,0.39616,2526.1,2526.0,0.84467]
[1729781998230,0.39615,2526.3,2526.2,0.39613]
[1729782000625,3.2078,2526.4,2526.2,7.35791783]
[1729782000927,0.39611,2526.5,2526.4,0.3961]
[1729782001128,3.2078,2526.7,2526.3,0.4394]
[1729782001327,3.60387,2526.7,2526.6,0.39608]
[1729782001537,3.60386,2526.7,2526.6,0.39608]
[1729782001729,0.3961,2526.6,2526.5,0.39608]
[1729782002032,0.39611,2526.5,2526.4,0.3961]
[1729782003022,3.2078,2526.7,2526.3,0.4394]
[1729782003224,0.3961,2526.6,2526.5,0.39608]
[1729782003826,3.2078,2526.7,2526.3,1.42972]
[1729782004034,0.39609,2526.6,2526.5,0.39608]
[1729782004340,0.39611,2526.5,2526.4,0.39611]
[1729782004927,3.2078,2526.7,2526.3,0.4394]
[1729782005335,0.3961,2526.6,2526.5,0.39608]
[1729782005532,3.60387,2526.7,2526.6,0.39608]
[1729782005739,0.39604,2526.9,2526.8,0.39604]
[1729782006040,0.39604,2526.9,2526.4,7.59760783]
[1729782006041,0.39602,2527.0,2526.7,0.39606]
[1729782006235,0.39605,2526.9,2526.8,0.4512]
[1729782006641,0.39613,2526.3,2526.1,3.46742451]
[1729782006834,3.2078,2526.7,2526.2,1.03266053]
[1729782007137,0.39612,2526.4,2526.3,0.39612]
[1729782007438,0.3961,2526.5,2526.4,0.39609]
[1729782007629,0.39609,2526.6,2526.5,0.39608]
[1729782009832,3.2078,2527.0,2526.5,7.35711783]
[1729782010141,3.2078,2527.0,2526.8,0.39604]
[1729782010142,0.39605,2526.9,2526.8,0.39604]
[1729782010838,3.2078,2527.0,2526.7,0.4457]
[1729782011136,3.60383,2527.0,2526.9,0.39603]
[1729782012025,0.39605,2526.9,2526.8,0.39604]
[1729782012632,3.60383,2527.0,2526.9,0.39603]
[1729782012831,0.39604,2526.9,2526.8,0.39604]
[1729782013133,0.39605,2526.8,2526.7,0.84176]
[1729782013333,0.39605,2526.8,2526.7,0.4457]
[1729782013544,4.19786,2527.0,2526.6,0.4665]
[1729782013545,0.39606,2526.7,2526.6,0.4665]
[1729782014138,0.39606,2526.7,2526.6,0.86258]
[1729782014338,0.39606,2526.7,2526.6,0.98643743]
[1729782016738,0.39606,2526.7,2526.6,0.86258]
[1729782016946,0.39606,2526.7,2526.6,0.98643855]
[1729782017845,3.2078,2527.0,2526.6,0.59035855]
[1729782018040,0.39604,2527.0,2526.9,0.39602]
[1729782018340,0.39605,2526.9,2526.8,0.39603]
[1729782019039,0.39605,2526.9,2526.6,0.4665]
[1729782019040,0.39606,2526.7,2526.6,0.4665]
[1729782019239,4.4101,2526.8,2526.4,0.4246]
[1729782019441,0.3961,2526.5,2526.4,0.82071]
[1729782019638,0.3961,2526.5,2526.4,0.94458037]
[1729782019837,0.3961,2526.5,2526.4,0.12387037]
[1729782020047,0.99033,2526.3,2525.9,0.39618]
[1729782020347,0.39618,2526.1,2526.0,0.74328949]
[1729782020546,0.39618,2526.1,2526.0,0.52005158]
[1729782020847,0.39618,2526.1,2526.0,1.33770958]
[1729782021055,3.6603,2526.4,2526.0,0.94153958]
[1729782021246,0.39615,2526.2,2526.1,0.52002158]
[1729782022249,0.39615,2526.2,2526.1,1.33766829]
[1729782022642,0.39615,2526.2,2526.1,1.33766953]
[1729782023148,3.6603,2526.4,2526.3,0.39613]
[1729782023149,3.2078,2526.4,2526.3,0.39613]
[1729782023346,3.60391,2526.4,2526.3,0.52001158]
[1729782024357,3.60391,2526.4,2526.3,0.12388158]
[1729782024647,4.35451,2526.4,2526.3,0.12388158]
[1729782024949,0.39611,2526.4,2526.3,0.52001158]
[1729782025342,0.39611,2526.4,2526.3,0.12388158]
[1729782025545,4.35451,2526.4,2526.3,0.12388158]
[1729782026449,8.15649,2526.4,2525.6,3.25563305]
[1729782026650,0.39622,2525.7,2525.6,4.0739]
[1729782026852,0.39622,2525.7,2525.6,6.25459109]
[1729782027048,0.39622,2525.7,2525.6,6.65083109]
[1729782027245,0.99047,2526.0,2525.6,6.25459109]
[1729782027446,0.39622,2525.8,2525.7,1.33789519]
[1729782027947,0.39622,2525.8,2525.7,0.39621]
[1729782028754,6.60731783,2526.1,2525.6,4.0739]
[1729782028946,0.39622,2525.7,2525.6,4.47013]
[1729782029143,0.99044,2526.0,2525.6,4.0739]
[1729782029342,0.39622,2525.8,2525.7,0.71836825]
[1729782029548,0.39622,2525.8,2525.7,1.33790744]
[1729782029856,0.39622,2525.8,2525.7,1.33791744]
[1729782030444,6.60731783,2526.1,2525.7,0.94169744]
[1729782030752,0.99039,2526.2,2525.8,0.12390702]
[1729782030753,0.3962,2525.9,2525.8,0.12390702]
[1729782030952,0.3962,2525.9,2525.8,0.52011702]
[1729782031150,0.3962,2525.9,2525.8,0.12390702]
[1729782031351,0.39619,2526.0,2525.9,0.39618]
[1729782031557,0.39619,2526.0,2525.9,0.52008702]
[1729782031744,0.39619,2526.0,2525.9,0.12390702]
[1729782032847,3.60399,2526.0,2525.9,0.12390702]
[1729782033462,0.39622,2525.8,2525.7,0.39621]
[1729782033651,0.39622,2525.8,2525.7,1.33786885]
[1729782034053,0.39622,2525.8,2525.7,0.94165885]
[1729782034358,0.39622,2525.8,2525.7,0.12390248]
[1729782034552,0.39627,2525.4,2525.3,4.48757]
[1729782034753,0.39627,2525.4,2525.3,5.03308252]
[1729782035161,0.39627,2525.4,2525.3,4.21522023]
[1729782036252,3.60407,2525.4,2525.3,0.12392023]
[1729782036452,7.1678,2525.4,2524.8,0.4272]
[1729782036655,7.1678,2525.4,2524.7,3.6719]
[1729782036656,6.60731783,2525.1,2524.7,3.6719]
[1729782036856,6.60731783,2525.1,2524.7,4.06828]
[1729782036857,0.39636,2524.8,2524.7,4.06828]
[1729782037063,0.39636,2524.8,2524.7,3.79585078]
[1729782037649,0.39636,2524.8,2524.7,3.6719]
[1729782037851,0.39636,2524.8,2524.7,4.06828]
[1729782038157,0.39636,2524.8,2524.7,3.79585159]
[1729782038355,0.39636,2524.8,2524.7,3.6719]
[1729782038756,0.39636,2524.8,2524.4,3.60422]
[1729782038757,0.39641,2524.5,2524.4,3.60422]
[1729782038955,0.39641,2524.5,2524.4,3.60423]
[1729782039170,4.63782,2524.8,2524.5,0.39641]
[1729782039171,0.39641,2524.6,2524.5,0.39641]
[1729782039657,0.39639,2524.7,2524.6,0.39639]
[1729782039853,0.4359,2525.0,2524.4,3.2078]
[1729782040258,3.6632,2525.1,2524.5,3.39951783]
[1729782040458,6.60731783,2525.4,2524.5,3.39951783]
[1729782040657,3.2078,2525.4,2525.3,0.39628]
[1729782040859,3.2078,2525.7,2525.6,0.39624]
[1729782041261,3.60402,2525.7,2525.6,0.39624]
[1729782041456,3.60403,2525.7,2525.6,0.39624]
[1729782041861,3.2078,2525.7,2525.6,0.39624]
[1729782042260,3.60402,2525.7,2525.6,0.39624]
[1729782042456,3.2078,2525.7,2525.6,0.39624]
[1729782042859,3.2078,2525.7,2525.2,5.71766783]
[1729782043359,3.2078,2525.7,2525.6,0.39624]
[1729782044054,0.39618,2526.0,2525.9,0.39619]
[1729782044254,3.2078,2526.4,2526.2,0.39614]
[1729782044462,3.60392,2526.4,2526.2,0.39613]
[1729782044765,3.2078,2526.4,2526.3,0.39613]
[1729782045663,3.2078,2526.8,2526.3,7.75404783]
[1729782045855,3.2078,2526.8,2526.7,0.39605]
[1729782046760,3.60386,2526.8,2526.4,0.9026]
[1729782046955,7.01680951,2527.0,2526.4,0.9026]
[1729782047163,0.39607,2526.7,2526.5,0.39608]
[1729782048258,3.39951783,2527.0,2526.4,0.9026]
[1729782048455,0.39604,2526.9,2526.7,0.39606]
[1729782048860,0.39604,2526.9,2526.7,0.39605]
[1729782049364,11.99265121,2527.1,2527.0,0.39602]
[1729782049365,8.78485121,2527.1,2527.0,0.39602]
[1729782049569,8.78485121,2527.1,2527.0,4.35282]
[1729782050170,8.78485121,2527.1,2527.0,5.74542]
[1729782050358,8.78485121,2527.1,2527.0,7.42242]
[1729782050964,4.65080358,2527.1,2527.0,7.42242]
[1729782051871,2.52740358,2527.1,2527.0,7.42242]
[1729782052369,5.69315062,2527.8,2527.1,3.9568]
[1729782052567,6.21070977,2528.4,2528.3,0.39581]
[1729782052770,6.21070977,2528.4,2528.3,7.94816631]
[1729782053066,6.21070977,2528.4,2528.3,4.35101]
[1729782053268,6.21070977,2528.4,2528.3,0.39581]
[1729782053457,6.21070977,2528.4,2528.1,6.60731783]
[1729782053662,0.39582,2528.3,2528.1,3.2078]
[1729782053876,0.39583,2528.2,2527.9,3.39951783]
[1729782054066,0.39591,2527.7,2527.5,3.39951783]
[1729782054366,3.2078,2527.8,2527.3,4.8848]
[1729782054571,0.4443,2527.7,2527.3,3.2078]
[1729782055065,0.4443,2527.7,2527.4,0.39595]
[1729782055269,0.4443,2527.7,2527.5,4.58015712]
[1729782055575,0.4443,2527.7,2527.5,4.18422712]
[1729782055870,0.39592,2527.6,2527.5,4.18422712]
[1729782056065,0.82882,2527.6,2527.5,4.18422712]
[1729782056273,0.39597,2527.3,2527.0,4.58023712]
[1729782056471,4.3897,2527.6,2527.0,4.18422712]
[1729782056472,3.2078,2527.5,2527.0,4.18422712]
[1729782056667,0.39605,2526.9,2526.7,5.86122712]
[1729782056868,3.2078,2527.2,2526.5,3.2078]
[1729782057064,0.39607,2526.7,2526.5,3.2078]
[1729782057365,0.82896,2526.8,2526.5,7.39202712]
[1729782057568,0.4329,2526.8,2526.5,7.39202712]
[1729782057760,0.4329,2526.8,2526.5,7.78811712]
[1729782057965,0.82896,2526.8,2526.5,7.78811712]
[1729782058164,0.39608,2526.6,2526.5,3.2078]
[1729782058373,4.3905,2526.8,2526.2,7.39202712]
[1729782058374,0.39612,2526.4,2526.2,7.39202712]
[1729782058867,0.4516,2526.7,2526.2,7.39202712]
[1729782058868,0.39613,2526.3,2526.2,3.2078]
[1729782059968,0.39617,2526.0,2525.9,3.2078]
[1729782060162,4.19809,2526.5,2525.7,4.18422712]
[1729782060366,3.2078,2526.2,2525.7,4.18422712]
[1729782060569,0.39621,2525.8,2525.7,4.18422712]
[1729782060770,0.4573,2526.1,2525.5,4.18422712]
[1729782060771,0.39623,2525.7,2525.5,4.18422712]
[1729782060969,0.99044,2526.0,2525.2,14.48151712]
[1729782061164,0.39628,2525.3,2525.2,4.18422712]
[1729782061367,3.2078,2525.5,2524.9,4.18422712]
[1729782061572,3.2078,2525.5,2524.8,3.2078]
[1729782061573,0.39635,2524.9,2524.8,3.2078]
[1729782061963,0.39639,2524.6,2524.5,5.85222712]
[1729782062164,0.39639,2524.6,2524.5,1.668]
[1729782062569,0.39635,2524.9,2524.5,2.06441]
[1729782062870,3.2078,2525.0,2524.5,5.85222712]
[1729782063076,3.2078,2525.0,2524.7,4.18422712]
[1729782063266,3.2078,2525.4,2524.7,4.18422712]
[1729782063581,4.1349,2525.8,2525.6,0.39623]
[1729782063767,4.1349,2525.8,2525.4,4.18422712]
[1729782063768,3.2078,2525.8,2525.4,4.18422712]
[1729782064079,3.2078,2525.8,2525.4,5.85322712]
[1729782064381,3.2078,2525.8,2525.7,0.39622]
[1729782064678,3.633,2526.3,2525.8,0.3962]
[1729782064875,3.633,2526.3,2525.4,9.81242712]
[1729782064876,0.3962,2525.9,2525.5,0.39624]
[1729782065170,0.3962,2525.9,2525.4,4.18422712]
[1729782065171,3.2078,2526.0,2525.3,4.8768]
[1729782065370,0.3962,2525.9,2525.5,0.39624]
[1729782066072,0.3962,2525.9,2525.3,4.8768]
[1729782066284,0.39622,2525.8,2525.4,0.39626]
[1729782066572,0.39625,2525.6,2525.3,3.2078]
[1729782066767,3.2078,2525.7,2524.9,3.2078]
[1729782066964,3.2078,2525.7,2524.9,3.60414]
[1729782066965,0.39629,2525.3,2524.9,3.60414]
[1729782067169,0.39627,2525.4,2524.9,3.2078]
[1729782067473,0.4396,2525.5,2525.0,0.39633]
[1729782067671,0.83586,2525.5,2525.1,0.3963]
[1729782067973,0.4396,2525.5,2525.2,0.39629]
[1729782068678,0.4396,2525.5,2524.9,7.39202712]
[1729782068679,0.4396,2525.5,2525.3,0.39627]
[1729782068867,3.2078,2525.7,2525.2,4.18422712]
[1729782069069,3.2078,2525.7,2525.5,0.39624]
[1729782069270,3.2078,2525.7,2525.6,0.39624]
[1729782070069,0.4371,2525.9,2525.4,4.18422712]
[1729782070274,0.4371,2525.9,2525.6,0.39623]
[1729782070467,0.4371,2525.9,2525.2,4.18422712]
[1729782070670,0.4371,2525.9,2525.7,0.39621]
[1729782071275,0.8333,2525.9,2525.7,0.39621]
[1729782071471,0.4371,2525.9,2525.3,3.2078]
[1729782071673,0.4371,2525.9,2525.8,0.39621]
[1729782071873,0.4371,2525.9,2525.3,3.6551]
[1729782072073,3.6474,2526.0,2525.4,0.99068]
[1729782072277,0.99002,2527.1,2525.9,4.18422712]
[1729782072474,3.2078,2526.6,2526.5,0.3961]
[1729782072689,0.39604,2526.9,2526.6,0.39606]
[1729782072983,0.8986,2527.0,2526.3,4.8768]
[1729782073187,0.8986,2527.0,2526.6,3.2078]
[1729782073188,0.4304,2527.0,2526.6,3.2078]
[1729782073385,0.4304,2527.0,2526.3,1.669]
[1729782073573,0.4304,2527.0,2526.2,7.39202712]
[1729782073778,0.4304,2527.0,2526.3,1.669]
[1729782073779,0.39609,2526.6,2526.3,1.669]
[1729782073980,3.2078,2526.8,2526.3,10.14991233]
[1729782074177,3.60386,2526.8,2526.3,10.14991233]
[1729782074381,3.60384,2526.9,2526.6,0.39607]
[1729782074689,0.39606,2526.8,2526.6,0.39607]
[1729782075083,3.60384,2526.9,2526.7,0.39606]
[1729782075284,3.2078,2526.9,2526.7,0.39606]
[1729782075478,0.39605,2526.8,2526.6,0.39607]
[1729782075684,3.60384,2526.9,2526.7,0.39606]
[1729782075887,0.39604,2526.9,2526.7,0.39606]
[1729782076187,3.60384,2526.9,2526.7,0.39606]
[1729782076889,0.4304,2527.0,2526.3,10.14991233]
[1729782077086,0.39605,2526.8,2526.6,0.39607]
[1729782077790,0.4304,2527.0,2526.3,10.14991233]
[1729782078087,0.39606,2526.8,2526.6,0.39607]
[1729782078388,3.2078,2526.9,2526.3,10.14991233]
[1729782078590,3.60385,2526.9,2526.3,10.14991233]
[1729782078893,3.60385,2526.9,2526.7,0.39606]
[1729782079383,3.60385,2526.9,2526.7,0.39605]
[1729782079384,0.39605,2526.9,2526.7,0.39605]
[1729782079588,0.4304,2527.0,2526.5,4.18422712]
[1729782079891,0.39606,2526.8,2526.6,0.39607]
[1729782080092,0.39605,2526.9,2526.7,0.39606]
[1729782080394,0.4304,2527.0,2526.4,3.2078]
[1729782080395,0.39606,2526.8,2526.6,0.39607]
[1729782080887,0.39604,2526.9,2526.8,0.39605]
[1729782081109,0.4304,2527.0,2526.9,0.39603]
[1729782081387,0.4304,2527.0,2526.7,3.2078]
[1729782081388,0.4396,2527.4,2527.1,0.396]
[1729782081584,0.4396,2527.4,2527.3,0.39597]
[1729782081982,3.2078,2527.6,2527.2,1.38596]
[1729782082185,0.8229,2527.8,2527.1,5.86681]
[1729782082186,0.427,2527.8,2527.1,5.86681]
[1729782082386,0.4263,2527.9,2527.4,0.9899]
[1729782082688,3.2078,2528.0,2527.8,0.39589]
[1729782082886,3.2078,2528.0,2527.6,4.18422712]
[1729782083186,3.2078,2528.0,2527.6,0.39591]
[1729782083493,0.39593,2527.6,2527.4,2.06494]
[1729782083787,4.19744,2528.1,2527.5,0.39593]
[1729782083984,0.39592,2527.6,2527.5,0.39593]
[1729782084183,0.39592,2527.6,2527.4,2.06495]
[1729782084382,0.39593,2527.6,2527.4,1.669]
[1729782084582,1.38559,2527.9,2527.3,0.39597]
[1729782084788,0.39594,2527.5,2527.3,0.39597]
[1729782084986,3.2078,2527.7,2527.1,3.2078]
[1729782085183,3.2078,2527.7,2527.1,3.6038]
[1729782085184,0.39598,2527.3,2527.1,3.6038]
[1729782085383,3.2078,2527.7,2527.1,3.6038]
[1729782085384,3.2078,2527.7,2527.1,3.2078]
[1729782085589,0.39595,2527.5,2527.2,0.39597]
[1729782085893,0.39596,2527.4,2527.2,0.39597]
[1729782086394,0.39594,2527.5,2527.3,0.39596]
[1729782086687,3.2078,2527.7,2527.3,4.18422712]
[1729782086890,3.2078,2528.1,2527.4,3.2078]
[1729782087091,3.2078,2528.1,2527.5,4.18422712]
[1729782087292,3.2078,2528.1,2527.9,0.39587]
[1729782087293,0.39587,2528.0,2527.9,0.39587]
[1729782087491,3.2078,2528.1,2527.5,4.18422712]
[1729782087687,0.39589,2527.9,2527.7,0.39591]
[1729782087991,3.2078,2528.1,2527.7,0.39591]
[1729782088193,0.39589,2527.8,2527.7,0.39591]
[1729782088397,4.19744,2528.1,2527.4,2.5563]
[1729782088586,4.19744,2528.1,2527.5,0.39593]
[1729782088587,0.39592,2527.7,2527.5,0.39593]
[1729782088783,3.2078,2527.7,2527.2,1.93135995]
[1729782088987,3.2078,2527.7,2527.2,2.06398]
[1729782088988,4.19759,2527.7,2527.2,2.06398]
[1729782089182,0.4812,2527.6,2527.2,2.06398]
[1729782089386,0.4812,2527.6,2527.2,1.668]
[1729782089592,0.39595,2527.5,2527.4,0.39595]
[1729782090392,0.39596,2527.4,2527.3,0.39596]
[1729782091193,3.2078,2527.4,2527.0,3.2078]
[1729782091387,0.39602,2527.1,2526.9,1.662]
[1729782091588,0.39602,2527.1,2527.0,0.39602]
[1729782092189,0.39603,2527.0,2526.9,0.39603]
[1729782092493,0.39605,2526.8,2526.7,3.2078]
[1729782093596,0.39605,2526.8,2526.7,3.60386]
[1729782093794,0.87134,2526.9,2526.8,0.39605]
[1729782093989,0.39605,2526.8,2526.7,3.60386]
[1729782094891,0.39605,2526.8,2526.7,3.2078]
[1729782095992,0.3961,2526.5,2526.4,3.2078]
[1729782096196,0.3961,2526.5,2526.4,3.60391]
[1729782096390,0.3961,2526.5,2526.4,3.2078]
[1729782096592,0.3961,2526.5,2526.4,3.60391]
[1729782096996,0.3961,2526.5,2526.0,3.60396]
[1729782096997,0.39617,2526.1,2526.0,3.60396]
[1729782097205,0.39615,2526.2,2526.1,0.39614]
[1729782097997,0.99023,2526.6,2526.0,3.2078]
[1729782098194,0.39615,2526.3,2526.2,0.39614]
[1729782098498,0.99026,2526.5,2526.0,3.2078]
[1729782098902,0.99026,2526.5,2526.2,0.39614]
[1729782099101,0.39614,2526.3,2526.2,0.39614]
[1729782099302,0.99026,2526.5,2526.0,3.2078]
[1729782099497,0.39616,2526.1,2526.0,3.2078]
[1729782099699,0.9903,2526.4,2525.3,7.39202712]
[1729782099700,8.23072712,2526.4,2525.3,7.39202712]
[1729782099904,8.23072712,2526.4,2525.6,0.39623]
[1729782099905,0.39623,2525.7,2525.6,0.39623]
[1729782100205,0.39624,2525.6,2525.5,0.39624]
[1729782101003,0.39628,2525.4,2525.3,0.39628]
[1729782101798,1.41817,2525.7,2524.9,6.32287]
[1729782101799,0.99061,2525.6,2524.9,3.669]
[1729782102004,0.39633,2525.0,2524.9,3.60413]
[1729782102599,0.39632,2525.1,2525.0,0.39632]
[1729782103003,0.469,2525.3,2524.9,3.2078]
[1729782103307,0.3963,2525.3,2525.2,0.3963]
[1729782103612,0.39632,2525.2,2525.1,0.39631]
[1729782103798,0.99064,2525.5,2525.1,0.39631]
[1729782103799,4.19844,2525.5,2525.1,0.39631]
[1729782104102,0.39633,2525.0,2524.9,3.60414]
[1729782104608,0.39633,2525.0,2524.9,3.60415]
[1729782104804,0.39633,2525.0,2524.9,3.2078]
[1729782105696,0.39635,2524.9,2524.8,0.39636]
[1729782106604,0.39635,2524.9,2524.6,7.39202712]
[1729782106605,0.39637,2524.8,2524.7,0.39637]
[1729782106994,0.39638,2524.7,2524.6,7.78841712]
[1729782107204,0.39638,2524.7,2524.6,0.39639]
[1729782107698,0.39638,2524.8,2524.7,0.39638]
[1729782107898,3.2078,2524.9,2524.2,3.2078]
[1729782108101,3.2078,2524.4,2523.8,3.6615]
[1729782108301,4.65722712,2524.7,2523.8,3.6615]
[1729782108302,0.99099,2524.6,2523.8,3.6615]
[1729782108505,0.39647,2524.2,2523.9,0.3965]
[1729782108804,0.39647,2524.1,2524.0,0.39648]
[1729782109309,0.39646,2524.2,2524.1,0.39647]
[1729782110101,4.61859,2524.6,2523.8,2.1167]
[1729782110102,0.39648,2524.1,2523.8,2.1167]
[1729782110308,4.61859,2524.6,2523.8,2.1167]
[1729782110309,0.39645,2524.3,2524.1,0.39647]
[1729782110701,4.61859,2524.6,2523.8,5.3245]
[1729782111004,0.39647,2524.2,2523.8,5.3245]
[1729782111205,0.39646,2524.2,2524.1,0.39647]
[1729782111412,0.39645,2524.3,2524.1,0.39646]
[1729782111712,0.39646,2524.2,2524.1,0.39646]
[1729782112004,0.99099,2524.6,2524.1,0.39646]
[1729782112209,0.39646,2524.2,2524.1,0.39646]